fUSD/lending_fUSD_20240125
["ID","MTS","AMOUNT","RATE_DAILY","PERIOD"]
[312723360,1706189098105,-167.95,0.00055342,120]
[312723361,1706189098139,-2392.7,0.00055342,120]
[312723362,1706189098174,-1269.77,0.00055342,120]
[312723363,1706189098208,-590.64740384,0.00055342,120]
[312723364,1706189098241,-200.0,0.0005537,120]
[312723365,1706189098276,-500.0,0.00055479,120]
[312723366,1706189098312,-1000000.0,0.000555,120]
[312723367,1706189098345,-150.0,0.00055515,120]
[312723368,1706189098378,-2000.0,0.000556,120]
[312723369,1706189098411,-633.1245371,0.00055616,120]
[312723370,1706189098445,-1224.58995153,0.00055616,120]
[312723371,1706189098478,-528.17793399,0.00055616,120]
[312723372,1706189098511,-549.974854,0.00055616,120]
[312723373,1706189098545,-684.67,0.00055616,120]
[312723374,1706189098578,-591.96574508,0.00055616,120]
[312723375,1706189098611,-503.99200786,0.00055616,120]
[312723376,1706189098643,-740.19320204,0.00055616,120]
[312723377,1706189098675,-504.14592795,0.00055616,120]
[312723378,1706189098707,-502.6713381,0.00055616,120]
[312723379,1706189098739,-512.02377813,0.00055616,120]
[312723380,1706189098777,-626.04411622,0.00055616,120]
[312723381,1706189098809,-520.30743549,0.00055616,120]
[312723382,1706189098841,-254.43,0.00055616,120]
[312723383,1706189098873,-1172.49816566,0.00055616,120]
[312723384,1706189098904,-579.12496867,0.00055616,120]
[312723385,1706189098936,-732.23529708,0.00055616,120]
[312723386,1706189098967,-662.95916543,0.00055616,120]
[312723387,1706189098999,-651.09678634,0.00055616,120]
[312723388,1706189099032,-654.77746537,0.00055616,120]
[312723389,1706189099064,-914.79559068,0.00055616,120]
[312723390,1706189099095,-741.53006558,0.00055616,120]
[312723391,1706189099128,-742.47487856,0.00055616,120]
[312723392,1706189099162,-4861.51494885,0.00055616,120]
[312723393,1706189099194,-1144.45665364,0.00055616,120]
[312723394,1706189099227,-568.23039568,0.00055616,120]
[312723395,1706189099260,-558.02925696,0.00055616,120]
[312723396,1706189099293,-3266.17367046,0.00055616,120]
[312723397,1706189099326,-2307.06251649,0.00055616,120]
[312723398,1706189099395,-1162.29854454,0.00055616,120]
[312723399,1706189099427,-806.62701415,0.00055616,120]
[312723400,1706189099459,-534.9368774,0.00055616,120]
[312723401,1706189099492,-563.73992317,0.00055616,120]
[312723402,1706189099525,-624.97990368,0.00055616,120]
[312723403,1706189099558,-658.60524225,0.00055616,120]
[312723404,1706189099590,-2660.33798966,0.00055616,120]
[312723405,1706189099622,-1771.9884633,0.00055616,120]
[312723406,1706189099654,-542.6270196,0.00055616,120]
[312723407,1706189099685,-522.75359079,0.00055616,120]
[312723408,1706189099717,-598.0405316,0.00055616,120]
[312723409,1706189099748,-886.97726364,0.00055616,120]
[312723410,1706189099779,-4161.52274387,0.00055616,120]
[312723411,1706189099812,-631.36308973,0.00055616,120]
[312723412,1706189099845,-706.71643673,0.00055616,120]
[312723413,1706189099877,-673.37306972,0.00055616,120]
[312723414,1706189099910,-512.01312544,0.00055616,120]
[312723415,1706189099944,-707.5297067,0.00055616,120]
[312723416,1706189099979,-2392.77040679,0.00055616,120]
[312723417,1706189100011,-1269.98596482,0.00055616,120]
[312723418,1706189100045,-500.0,0.00055822,120]
[312723419,1706189100079,-200.0,0.00055987,87]
[312723420,1706189100111,-200.0,0.00055987,60]
[312723421,1706189100144,-200.0,0.00055987,66]
[312723422,1706189100179,-200.0,0.00055987,80]
[312723423,1706189100212,-200.0,0.00055987,84]
[312723424,1706189100243,-1000.0,0.00055999,120]
[312723425,1706189100276,-100000.0,0.00056,46]
[312723426,1706189100307,-2000.0,0.00056,120]
[312723427,1706189100340,-250.0,0.00056,120]
[312723428,1706189100372,-303.05548046,0.00056,120]
[312723429,1706189100405,-300.0,0.00056,35]
[312723430,1706189100438,-151.0,0.00056,120]
[312723431,1706189100470,-300.0,0.00056,57]
[312723432,1706189100501,-200.0,0.00056055,120]
[312723433,1706189100533,-1000.0,0.00056164,120]
[312723434,1706189100565,-1000.0,0.00056164,120]
[312723435,1706189100598,-1000.0,0.00056164,120]
[312723436,1706189100629,-1000.0,0.00056164,120]
[312723437,1706189100659,-1000.0,0.00056164,120]
[312723438,1706189100691,-1000.0,0.00056164,120]
[312723439,1706189100852,-1000.0,0.00056164,120]
[312723440,1706189100885,-1000.0,0.00056164,120]
[312723441,1706189100918,-1000.0,0.00056164,120]
[312723442,1706189100948,-1000.0,0.00056164,120]
[312723443,1706189100979,-1000.0,0.00056164,120]
[312723444,1706189101011,-671.07440358,0.00056164,120]
[312723445,1706189101042,-500.0,0.00056164,120]
[312723446,1706189101073,-8000.0,0.000562,120]
[312723447,1706189101104,-200.0,0.00056493,120]
[312723448,1706189101135,-207.27,0.000565,120]
[312723449,1706189101168,-500.0,0.00056507,120]
[312723450,1706189101201,-150.0,0.00056525,120]
[312723451,1706189101234,-500.0,0.00056849,120]
[312723452,1706189101266,-201.0,0.00056878,53]
[312723453,1706189101299,-200.0,0.00056987,88]
[312723454,1706189101330,-200.0,0.00056987,90]
[312723455,1706189101362,-200.0,0.00056987,62]
[312723456,1706189101396,-200.0,0.00056987,69]
[312723457,1706189101429,-1000.0,0.00056999,120]
[312723458,1706189101464,-100000.0,0.00057,47]
[312723459,1706189101495,-200.0,0.00057,60]
[312723460,1706189101533,-300.0,0.00057,58]
[312723461,1706189101565,-2000.0,0.00057,120]
[312723462,1706189101599,-2000.0,0.00057,120]
[312723463,1706189101630,-389.62131032,0.00057,120]
[312723464,1706189101661,-250.0,0.00057,120]
[312723465,1706189101692,-300.0,0.00057,36]
[312723466,1706189101723,-200.0,0.00057068,120]
[312723467,1706189101755,-500.0,0.00057192,120]
[312723468,1706189101786,-1500.0,0.00057328,60]
[312723469,1706189101817,-50597.6,0.0005744,100]
[312723470,1706189101848,-271.65048844,0.0005749,42]
[312723471,1706189101878,-2500.0,0.000575,120]
[312723472,1706189101909,-2500.0,0.000575,120]
[312723473,1706189101939,-2500.0,0.000575,120]
[312723474,1706189101970,-2500.0,0.000575,120]
[312723475,1706189102002,-2000.0,0.000575,120]
[312723476,1706189102033,-59073.42113965,0.000575,60]
[312723477,1706189102063,-8000.0,0.000575,120]
[312723478,1706189102094,-325.0,0.00057504,120]
[312723479,1706189102126,-325.0,0.00057504,120]
[312723480,1706189102157,-325.0,0.00057514,120]
[312723481,1706189102189,-325.0,0.00057514,120]
[312723482,1706189102224,-325.0,0.00057514,120]
[312723483,1706189102257,-328.01,0.00057514,120]
[312723484,1706189102289,-325.0,0.00057524,120]
[312723485,1706189102321,-325.0,0.00057524,120]
[312723486,1706189102355,-325.0,0.00057524,120]
[312723487,1706189102387,-325.0,0.00057524,120]
[312723488,1706189102419,-150.0,0.00057534,120]
[312723489,1706189102451,-585.88256995,0.00057534,120]
[312723490,1706189102834,2783.78244003,0.000548,120]
[312723491,1706189103247,2028.82761915,0.00053424,120]
[312723492,1706189103293,1118.2,0.0005452,120]
[312723493,1706189103342,1118.2,0.00054794,120]
[312723494,1706189103411,1118.2,0.00055068,120]
[312723495,1706189103469,1118.2,0.00055342,120]
[312723496,1706189103524,1118.31056661,0.00055616,120]
[312723497,1706189103676,586.25,0.0005452,120]
[312723498,1706189103725,2328.6,0.0005452,120]
[312723499,1706189103767,586.25,0.00054794,120]
[312723500,1706189103806,2328.6,0.00054794,120]
[312723501,1706189103851,586.25,0.00055068,120]
[312723502,1706189103920,2328.6,0.00055068,120]
[312723503,1706189103959,586.25,0.00055342,120]
[312723504,1706189104020,586.4783797,0.00055616,120]
[312723505,1706189104248,2328.6,0.00055342,120]
[312723506,1706189104318,2328.83428519,0.00055616,120]
[312723507,1706189104623,11382.25,0.00057534,33]
[312723508,1706189112555,905.85,0.0005452,120]
[312723509,1706189112902,905.85,0.00054794,120]
[312723510,1706189113077,905.85,0.00055068,120]
[312723511,1706189113353,905.85,0.00055342,120]
[312723512,1706189113931,906.01,0.00055616,120]
[312723513,1706189117293,234.14787927,0.0005452,120]
[312723514,1706189119636,847.89,0.0005452,120]
[312723515,1706189120261,847.89,0.00054794,120]
[312723516,1706189120411,620.02,0.0005452,120]
[312723517,1706189120723,620.02,0.00054794,120]
[312723518,1706189120763,847.89,0.00055068,120]
[312723519,1706189120978,620.02,0.00055068,120]
[312723520,1706189121021,847.89,0.00055342,120]
[312723521,1706189121258,847.96897955,0.00055616,120]
[312723522,1706189121567,620.02,0.00055342,120]
[312723523,1706189121956,620.11260646,0.00055616,120]
[312723525,1706189123693,99176.56275912,0.00057532,120]
[312723526,1706189123728,3000000.0,0.00057532,120]
[312723553,1706189432320,-781.06,0.00023761,2]
[312723554,1706189432332,-566.41315738,0.00023761,2]
[312723555,1706189432380,-10061.51154862,0.00023761,2]
[312723556,1706189432389,-1262.37262765,0.0002388,2]
[312723557,1706189432399,-1262.37262765,0.0002388,2]
[312723558,1706189432409,-1262.37262765,0.0002388,2]
[312723559,1706189432419,-1262.37262765,0.0002388,2]
[312723560,1706189432429,-3737.784556,0.00023998,2]
[312723561,1706189432439,-165.23804105,0.00024002,2]
[312723562,1706189432448,-593.19782047,0.00024998,2]
[312723563,1706189432458,-288.75833757,0.00024999,2]
[312723564,1706189432468,-24674.48901304,0.00025,2]
[312723565,1706189432480,-779.27224229,0.00025,2]
[312723566,1706189432491,-1366.98909176,0.00025,2]
[312723567,1706189432502,-474.43698901,0.00025,2]
[312723568,1706189432531,-604.16238233,0.00025,2]
[312723569,1706189432542,-36712.81023106,0.00025,2]
[312723570,1706189432580,-300.0,0.00025,2]
[312723571,1706189432591,-4096.88136756,0.00025,2]
[312723572,1706189432603,-577.37079432,0.00025,2]
[312723573,1706189432614,-56062.01923251,0.00025,2]
[312723574,1706189432627,-314.47830538,0.00025,2]
[312723575,1706189432651,-1312.90177721,0.00025,2]
[312723578,1706189432664,-691.59727248,0.00025,2]
[312723581,1706189432675,-20436.59286289,0.00025,2]
[312723584,1706189432684,-450.0,0.00025,3]
[312723587,1706189432696,-500.0,0.00026,2]
[312723590,1706189432705,-196.60447998,0.00026799,2]
[312723593,1706189432714,-13829.68196123,0.00029999,2]
[312723597,1706189432725,-1138.31996974,0.00029999,2]
[312723599,1706189432736,-3620.60015891,0.00029999,2]
[312723601,1706189432748,-527.83801942,0.00029999,2]
[312723602,1706189432759,-2605.52752326,0.00029999,2]
[312723603,1706189432768,-155.0,0.0003,2]
[312723604,1706189432777,-854.75,0.0003,2]
[312723605,1706189432786,-2882.0,0.000305,2]
[312723606,1706189432796,-201.0,0.00030904,2]
[312723607,1706189432809,-5000.0,0.00032,2]
[312723608,1706189432819,-173.19012912,0.000327,2]
[312723609,1706189432828,-173.19012912,0.000327,2]
[312723610,1706189432838,-9560.46956815,0.00033,4]
[312723611,1706189432848,-299.0,0.00033661,2]
[312723612,1706189432900,-394.66,0.00033719,2]
[312723613,1706189432909,-1000.0,0.00034,4]
[312723614,1706189432919,-2.40451158,0.00034648,4]
[312723615,1706189432930,-279.71703256,0.00034648,4]
[312723616,1706189432942,-217.12374908,0.00034994,4]
[312723617,1706189432951,-155.0,0.00034994,2]
[312723618,1706189432960,-371.50432901,0.00034994,4]
[312723619,1706189432969,-191.04557841,0.00034994,4]
[312723620,1706189432979,-991.68339586,0.00034996,4]
[312723621,1706189432990,-12112.72491827,0.00034996,4]
[312723622,1706189432999,-295.73068383,0.00034996,4]
[312723623,1706189433009,-6722.73149846,0.00034996,4]
[312723624,1706189433018,-769.27682971,0.00034996,4]
[312723625,1706189433027,-1055.90189588,0.00034997,2]
[312723626,1706189433037,-3167.34954252,0.00034997,2]
[312723627,1706189433046,-43047.82773449,0.00034998,4]
[312723628,1706189433058,-384.89695626,0.00034998,4]
[312723629,1706189433068,-867.95596008,0.00034999,2]
[312723630,1706189433077,-3592.44747576,0.00034999,4]
[312723631,1706189433087,-184.77981935,0.00034999,4]
[312723632,1706189433096,-1262.24661456,0.00035,4]
[312723633,1706189433106,-201.0,0.0003506,10]
[312723634,1706189433116,-1831.06,0.00035094,5]
[312723635,1706189433126,-1844.53,0.00035102,5]
[312723636,1706189433137,-1810.14,0.0003511,5]
[312723637,1706189433147,-1826.54,0.00035119,5]
[312723638,1706189433156,-1791.0,0.0003513,5]
[312723639,1706189433166,-527.83262986,0.00035141,5]
[312723659,1706189438394,-1049.75166093,0.00035141,5]
[312723664,1706189438505,-245.96570921,0.00035141,5]
[312723665,1706189438515,-342.03429079,0.00035142,5]
[312723666,1706189438527,-910.7364,0.00035142,5]
[312723667,1706189438540,-588.55930921,0.00035142,5]
[312723668,1706189438549,-1355.36077063,0.00035213,2]
[312723669,1706189438571,-1395.95922937,0.00035213,2]
[312723670,1706189438581,-170.33,0.00035271,2]
[312723671,1706189438591,-2571.9,0.00035271,2]
[312723672,1706189438601,-2509.97,0.00035381,2]
[312723673,1706189438612,-1813.51,0.00035381,2]
[312723674,1706189438623,-1000.0,0.00035386,2]
[312723675,1706189438636,-170.26,0.00035511,15]
[312723676,1706189438648,-500.0,0.00035513,2]
[312723677,1706189438668,-325.84,0.0003555,2]
[312723678,1706189438682,-250.0,0.00035621,2]
[312723679,1706189438692,-500.0,0.00035636,2]
[312723680,1706189438702,-250.0,0.00035699,2]
[312723681,1706189438714,-394.66,0.00035983,2]
[312723682,1706189438724,-299.0,0.00036542,2]
[312723683,1706189438734,-1782.95,0.00037086,5]
[312723684,1706189438744,-198.03,0.0003726,2]
[312723685,1706189438754,-173.19012912,0.00037305,2]
[312723686,1706189438765,-191.32,0.00037357,2]
[312723687,1706189438775,-259.82,0.000377,3]
[312723688,1706189438786,-259.82,0.000377,3]
[312723689,1706189438797,-259.82,0.000377,3]
[312723690,1706189438809,-259.82,0.000377,3]
[312723691,1706189438819,-259.82,0.000377,3]
[312723692,1706189438829,-259.82,0.000377,3]
[312723693,1706189438840,-259.82,0.000377,3]
[312723694,1706189438850,-259.82,0.000377,3]
[312723695,1706189438861,-259.82,0.000377,3]
[312723696,1706189438871,-259.82,0.000377,3]
[312723697,1706189438881,-259.82,0.000377,3]
[312723698,1706189438892,-259.82,0.000377,3]
[312723699,1706189438902,-259.82,0.000377,3]
[312723700,1706189438913,-259.82,0.000377,3]
[312723701,1706189438923,-259.82,0.000377,3]
[312723702,1706189438934,-259.82,0.000377,3]
[312723703,1706189438944,-259.82,0.000377,3]
[312723704,1706189438955,-259.82,0.000377,3]
[312723705,1706189438966,-259.82,0.000377,3]
[312723706,1706189438976,-259.82,0.000377,3]
[312723707,1706189438988,-419.17,0.00038082,2]
[312723708,1706189438999,-394.66,0.00038247,2]
[312723709,1706189439009,-1839.73,0.00038275,5]
[312723710,1706189439020,-150.0,0.00038356,2]
[312723711,1706189439031,-1000.0,0.000384,2]
[312723712,1706189439042,-242.85002929,0.0003898,2]
[312723713,1706189439055,-1228.01882984,0.00039,2]
[312723714,1706189439066,-201.0,0.00039217,18]
[312723715,1706189439077,-466.4,0.0003926,2]
[312723716,1706189439088,-150.0,0.00039366,2]
[312723717,1706189439099,-150.0,0.00039418,2]
[312723718,1706189439110,-299.0,0.00039423,2]
[312723719,1706189439120,-409.25,0.00039726,2]
[312723720,1706189439131,-294.83,0.00039726,2]
[312723721,1706189439141,-1000.0,0.00039809,2]
[312723722,1706189439151,-22022.85823354,0.0004,4]
[312723723,1706189439161,-569.5924431,0.0004,4]
[312723724,1706189439171,-24980.30484297,0.0004,4]
[312723725,1706189439181,-155.0,0.0004,2]
[312723726,1706189439192,-554.29335016,0.0004,2]
[312723727,1706189439202,-1339.58310854,0.000401,12]
[312723728,1706189439212,-625.26783682,0.00040135,5]
[312723729,1706189439223,-99625.9756,0.00040135,2]
[312723730,1706189439233,-39902.9125,0.000402,2]
[312723731,1706189439243,-1818.9,0.00040235,5]
[312723732,1706189439254,-275.5,0.000403,2]
[312723733,1706189439264,-150.0,0.00040375,2]
[312723734,1706189439274,-1200.0,0.000405,30]
[312723735,1706189439285,-394.66,0.00040511,2]
[312723736,1706189439296,-625.26783671,0.00040743,5]
[312723737,1706189439308,-283.0,0.0004089,2]
[312723738,1706189439319,-839.94911884,0.00040901,2]
[312723739,1706189439329,-175.206943,0.0004099,2]
[312723740,1706189439340,-189.170662,0.0004099,2]
[312723741,1706189439350,-154.142781,0.0004099,2]
[312723742,1706189439361,-185.685199,0.0004099,2]
[312723743,1706189439372,-175.206943,0.0004099,2]
[312723744,1706189439383,-189.170661,0.0004099,2]
[312723745,1706189439393,-154.142781,0.0004099,2]
[312723746,1706189439404,-175.206942,0.0004099,2]
[312723747,1706189439414,-189.170661,0.0004099,2]
[312723748,1706189439425,-308.285562,0.0004099,2]
[312723749,1706189439435,-185.685197,0.0004099,2]
[312723750,1706189439446,-175.206942,0.0004099,2]
[312723751,1706189439457,-189.170661,0.0004099,2]
[312723752,1706189439469,-164.083196,0.0004099,2]
[312723753,1706189439481,-175.206943,0.0004099,2]
[312723754,1706189439492,-154.142781,0.0004099,2]
[312723755,1706189439503,-189.170661,0.0004099,2]
[312723756,1706189439515,-185.685197,0.0004099,2]
[312723757,1706189439527,-166.301741,0.0004099,2]
[312723758,1706189439537,-2582.34864638,0.00041,4]
[312723759,1706189439548,-1000.0,0.000411,2]
[312723760,1706189439565,-500.0,0.000411,2]
[312723761,1706189439576,-259.82,0.000413,4]
[312723762,1706189439586,-259.82,0.000413,4]
[312723763,1706189439597,-259.82,0.000413,4]
[312723764,1706189439609,-259.82,0.000413,4]
[312723765,1706189439619,-259.82,0.000413,4]
[312723766,1706189439631,-259.82,0.000413,4]
[312723767,1706189439644,-259.82,0.000413,4]
[312723768,1706189439656,-259.82,0.000413,4]
[312723769,1706189439667,-259.82,0.000413,4]
[312723770,1706189439678,-259.82,0.000413,4]
[312723771,1706189439689,-259.82,0.000413,4]
[312723772,1706189439700,-259.82,0.000413,4]
[312723773,1706189439711,-259.82,0.000413,4]
[312723774,1706189439723,-259.82,0.000413,4]
[312723775,1706189439735,-259.82,0.000413,4]
[312723776,1706189439752,-259.82,0.000413,4]
[312723778,1706189439764,-259.82,0.000413,4]
[312723779,1706189439777,-259.82,0.000413,4]
[312723780,1706189439789,-259.82,0.000413,4]
[312723781,1706189439801,-259.82,0.000413,4]
[312723782,1706189439820,-277.589215,0.000413,2]
[312723784,1706189439831,-625.26783671,0.0004135,5]
[312723785,1706189439842,-150.0,0.00041384,2]
[312723786,1706189439852,-150.0,0.000418,17]
[312723787,1706189439862,-625.26783671,0.00041958,5]
[312723788,1706189439873,-594.39054103,0.00042,4]
[312723790,1706189439885,-299.0,0.00042304,2]
[312723792,1706189439895,-150.0,0.00042394,2]
[312723794,1706189439906,-752.59232144,0.000425,10]
[312723796,1706189439918,-625.26783671,0.00042566,5]
[312723798,1706189439929,-394.66,0.00042775,2]
[312723801,1706189439942,-85404.7699241,0.00043009,10]
[312723803,1706189439953,-625.26783671,0.00043173,5]
[312723805,1706189439965,-201.0,0.00043373,26]
[312723808,1706189439976,-150.0,0.00043403,2]
[312723811,1706189439986,-173.19012912,0.00043508,2]
[312723813,1706189439998,-690.0,0.0004369,2]
[312723815,1706189440009,-178.0,0.0004369,2]
[312723817,1706189440019,-625.26783671,0.00043781,5]
[312723819,1706189440029,-503.0,0.000438,2]
[312723821,1706189440040,-8000.0,0.000438,2]
[312723824,1706189440051,-187.5,0.00043835,120]
[312723826,1706189440066,-1193.77271755,0.00044232,30]
[312723828,1706189440077,-1000.0,0.00044232,2]
[312723830,1706189440088,-625.26783671,0.00044388,5]
[312723832,1706189440098,-150.0,0.00044412,2]
[312723834,1706189440109,-800.0,0.0004463,10]
[312723838,1706189440119,-487.0,0.000447,7]
[312723841,1706189440131,-2000.0,0.00044775,3]
[312723843,1706189440141,-2000.0,0.00044775,3]
[312723845,1706189440152,-3900.0,0.0004479,2]
[312723847,1706189440164,-1078.0,0.0004479,2]
[312723850,1706189440175,-3627.0,0.0004489,2]
[312723852,1706189440185,-960.0,0.0004489,2]
[312723854,1706189440194,-49050.5441,0.000449,2]
[312723856,1706189440204,-2000.0,0.000449,2]
[312723858,1706189440213,-2000.0,0.000449,2]
[312723860,1706189440226,-2000.0,0.000449,2]
[312723862,1706189440238,-2000.0,0.000449,2]
[312723865,1706189440249,-2105.36,0.000449,2]
[312723867,1706189440261,-259.82,0.000449,5]
[312723869,1706189440273,-259.82,0.000449,5]
[312723871,1706189440284,-259.82,0.000449,5]
[312723873,1706189440294,-259.82,0.000449,5]
[312723876,1706189440307,-259.82,0.000449,5]
[312723878,1706189440317,-259.82,0.000449,5]
[312723880,1706189440327,-259.82,0.000449,5]
[312723882,1706189440338,-259.82,0.000449,5]
[312723884,1706189440349,-259.82,0.000449,5]
[312723886,1706189440361,-259.82,0.000449,5]
[312723889,1706189440372,-259.82,0.000449,5]
[312723891,1706189440384,-259.82,0.000449,5]
[312723893,1706189440396,-259.82,0.000449,5]
[312723895,1706189440407,-259.82,0.000449,5]
[312723898,1706189440419,-259.82,0.000449,5]
[312723900,1706189440431,-259.82,0.000449,5]
[312723902,1706189440443,-259.82,0.000449,5]
[312723904,1706189440454,-259.82,0.000449,5]
[312723907,1706189440465,-259.82,0.000449,5]
[312723909,1706189440477,-259.82,0.000449,5]
[312723911,1706189440487,-31775.286379,0.00044945,2]
[312723913,1706189440497,-85404.7699241,0.00044969,10]
[312723915,1706189440507,-832.27573461,0.00044987,2]
[312723917,1706189440517,-3299.43555455,0.00044989,2]
[312723919,1706189440526,-85404.7699241,0.0004499,10]
[312723921,1706189440536,-1279.0,0.0004499,2]
[312723923,1706189440547,-329.0,0.0004499,2]
[312723926,1706189440561,-625.26783671,0.00044996,5]
[312723928,1706189440572,-2269.30418644,0.00044999,4]
[312723930,1706189440584,-884.53312901,0.00045,4]
[312723932,1706189440595,-2000.0,0.00045,7]
[312723934,1706189440607,-40786.83876435,0.00045,3]
[312723937,1706189440619,-155.33981355,0.00045,4]
[312723939,1706189440631,-285.23653985,0.00045,4]
[312723941,1706189440643,-834.0,0.00045,2]
[312723943,1706189440654,-15270.0,0.00045,2]
[312723945,1706189440664,-450.0,0.0004502,5]
[312723948,1706189440674,-450.0,0.0004502,5]
[312723951,1706189440683,-394.66,0.00045039,2]
[312723953,1706189440693,-299.0,0.00045185,2]
[312723955,1706189440703,-695.0,0.0004519,2]
[312723957,1706189440713,-179.0,0.0004519,2]
[312723959,1706189440724,-1000.0,0.000452,2]
[312723963,1706189440734,-8000.0,0.000452,2]
[312723966,1706189440744,-179.0,0.00045316,2]
[312723968,1706189440754,-150.0,0.00045422,2]
[312723970,1706189440765,-305.38,0.00045479,2]
[312723972,1706189440775,-150.0,0.00045479,2]
[312723974,1706189440785,-150.0,0.00045479,2]
[312723978,1706189440795,-150.0,0.00045479,2]
[312723982,1706189440807,-150.0,0.00045479,2]
[312723986,1706189440818,-150.0,0.00045479,2]
[312723988,1706189440828,-150.0,0.00045479,2]
[312723991,1706189440842,-625.26783671,0.00045604,5]
[312723993,1706189440852,-150.77,0.0004588,2]
[312723995,1706189440863,-5000.0,0.0004589,7]
[312723997,1706189440874,-789.0,0.0004589,2]
[312723999,1706189440885,-706.0,0.0004589,2]
[312724001,1706189440895,-150.77,0.0004596,2]
[312724003,1706189440905,-150.77,0.0004596,2]
[312724006,1706189440915,-150.77,0.0004596,2]
[312724008,1706189440925,-85404.7699241,0.0004597,10]
[312724010,1706189440936,-150.77,0.0004597,2]
[312724012,1706189440946,-150.77,0.0004597,2]
[312724014,1706189440956,-150.77,0.0004597,2]
[312724016,1706189440966,-332.08,0.00045973,2]
[312724018,1706189440976,-292.31,0.00045973,2]
[312724020,1706189440987,-292.31,0.00045973,2]
[312724022,1706189440996,-292.31,0.00045973,2]
[312724025,1706189441006,-292.31,0.00045973,2]
[312724027,1706189441016,-292.31,0.00045973,2]
[312724029,1706189441026,-292.31,0.00045973,2]
[312724031,1706189441037,-292.31,0.00045973,2]
[312724033,1706189441048,-292.31,0.00045973,2]
[312724035,1706189441059,-292.31,0.00045973,2]
[312724037,1706189441069,-292.31,0.00045973,2]
[312724039,1706189441078,-292.31,0.00045973,2]
[312724040,1706189441088,-292.31,0.00045973,2]
[312724042,1706189441098,-292.31,0.00045973,2]
[312724044,1706189441108,-292.31,0.00045973,2]
[312724045,1706189441118,-292.31,0.00045973,2]
[312724046,1706189441128,-292.31,0.00045973,2]
[312724047,1706189441137,-435.22,0.00045973,2]
[312724048,1706189441147,-292.31,0.00045973,2]
[312724049,1706189441157,-319.43,0.00045973,2]
[312724050,1706189441167,-85404.7699241,0.0004598,10]
[312724051,1706189441177,-150.77,0.0004598,2]
[312724052,1706189441187,-150.77,0.0004598,2]
[312724053,1706189441197,-150.77,0.0004598,2]
[312724054,1706189441207,-150.77,0.0004598,2]
[312724055,1706189441217,-150.77,0.0004598,2]
[312724057,1706189441227,-150.77,0.0004598,2]
[312724059,1706189441237,-150.77,0.0004598,2]
[312724061,1706189441247,-170809.539848,0.0004599,10]
[312724063,1706189441258,-25745.0,0.0004599,2]
[312724065,1706189441268,-6610.0,0.0004599,2]
[312724067,1706189441279,-150.77,0.0004599,2]
[312724069,1706189441289,-150.77,0.0004599,2]
[312724072,1706189441300,-150.77,0.0004599,2]
[312724074,1706189441311,-150.77,0.0004599,2]
[312724076,1706189441322,-150.77,0.0004599,2]
[312724078,1706189441332,-150.77,0.0004599,2]
[312724080,1706189441342,-150.77,0.0004599,2]
[312724082,1706189441352,-150.77,0.0004599,2]
[312724084,1706189441362,-150.77,0.0004599,2]
[312724086,1706189441372,-150.77,0.0004599,2]